fUST/lending_fUST_20251002
["ID","MTS","AMOUNT","RATE_DAILY","PERIOD"]
[388830698,1759403866692,5000.0,0.00018578,2]
[388830699,1759403874094,4158.91266508,0.00018533,2]
[388830700,1759403874118,10000.01,0.00018533,2]
[388830701,1759403874142,10000.01,0.00018533,2]
[388830702,1759403874165,10000.01,0.00018533,2]
[388830703,1759403874189,10000.01,0.00018533,2]
[388830704,1759403874212,10000.01,0.00018533,2]
[388830705,1759403874235,10000.01,0.00018533,2]
[388830706,1759403874258,10000.01,0.00018533,2]
[388830707,1759403874281,10000.01,0.00018533,2]
[388830708,1759403874306,10000.01,0.00018533,2]
[388830709,1759403879498,-9700.02,0.00018533,2]
[388830710,1759403879580,-10000.01,0.00018533,2]
[388830711,1759403879715,-10000.01,0.00018533,2]
[388830712,1759403879844,-10000.01,0.00018533,2]
[388830713,1759403879940,-10000.01,0.00018533,2]
[388830714,1759403880059,-10000.01,0.00018533,2]
[388830715,1759403881023,-10000.01,0.00018533,2]
[388830716,1759403881154,-10000.01,0.00018533,2]
[388830717,1759403881282,-10000.01,0.00018533,2]
[388830718,1759403881404,-10000.01,0.00018533,2]
[388830719,1759403883027,-300.0,0.00018532,2]
[388830720,1759403883061,-9400.01,0.00018533,2]
[388830721,1759403883129,-10000.01,0.00018533,2]
[388830722,1759403883310,-10000.01,0.00018533,2]
[388830723,1759403883468,-10000.01,0.00018533,2]
[388830724,1759403883938,-10000.01,0.00018533,2]
[388830725,1759403883969,-10000.01,0.00018533,2]
[388830726,1759403885183,-10000.01,0.00018533,2]
[388830727,1759403885525,-10000.01,0.00018533,2]
[388830728,1759403885678,-10000.01,0.00018533,2]
[388830729,1759403885792,-10000.01,0.00018533,2]
[388830730,1759403887067,-10000.01,0.00018533,2]
[388830731,1759403887188,-10000.01,0.00018533,2]
[388830732,1759403887495,-10000.01,0.00018533,2]
[388830733,1759403887634,-10000.01,0.00018533,2]
[388830734,1759403887748,-10000.01,0.00018533,2]
[388830735,1759403889027,226.69133025,0.00017962,2]
[388830736,1759403889100,-5000.0,0.00018348,2]
[388830737,1759403889148,-0.01,0.00018533,2]
[388830738,1759403889219,-10000.01,0.00018533,2]
[388830739,1759403889352,-10000.01,0.00018533,2]
[388830740,1759403889469,-3259.30266508,0.00018533,2]
[388830741,1759403889492,-3481.40466984,0.00018533,2]
[388830742,1759403891013,905.85855567,0.00017962,2]
[388830743,1759403904023,1929.5487948,0.00018541,2]
[388830744,1759403906104,3527.44464887,0.00018441,2]
[388830745,1759403912024,4543.01655633,0.00018541,2]
[388830746,1759403912045,456.98344367,0.00018541,2]
[388830747,1759403923070,476.74739044,0.00018506,2]
[388830748,1759403934628,5000.0,0.00018577,2]
[388830749,1759403952962,150.0,0.000185,2]
[388830750,1759403956836,4850.01,0.00018577,2]
[388830751,1759403956865,149.99,0.00018577,2]
[388830752,1759403964961,5000.0,0.00018577,2]
[388830753,1759403969524,159.24056731,0.00018506,2]
[388830754,1759403969841,159.24056727,0.00018515,2]
[388830755,1759403970147,159.24056727,0.00018523,2]
[388830756,1759403970445,159.24056727,0.00018532,2]
[388830757,1759403970766,159.24056727,0.0001854,2]
[388830758,1759403979941,165.04515382,0.00018506,2]
[388830759,1759403980985,5000.0,0.00018506,2]
[388830760,1759403988924,4834.96484618,0.00018506,2]
[388830761,1759403988947,165.03515382,0.00018506,2]
[388830762,1759404004736,5000.0,0.00018506,2]
[388830763,1759404012601,4834.97484618,0.00018506,2]
[388830764,1759404012623,165.02515382,0.00018506,2]
[388830765,1759404028413,5000.0,0.00018506,2]
[388830766,1759404036899,4834.98484618,0.00018506,2]
[388830767,1759404036921,165.01515382,0.00018506,2]
[388830768,1759404041965,-2955.07117568,0.00018542,2]
[388830769,1759404042039,-10000.01,0.00018542,2]
[388830770,1759404042217,-10000.01,0.00018542,2]
[388830771,1759404042359,-10000.01,0.00018542,2]
[388830772,1759404046571,-10000.01,0.00018542,2]
[388830773,1759404046700,-10000.01,0.00018542,2]
[388830774,1759404046813,-10000.01,0.00018542,2]
[388830775,1759404046966,-10000.01,0.00018542,2]
[388830776,1759404047152,-10000.01,0.00018542,2]
[388830777,1759404047239,-10000.01,0.00018542,2]
[388830778,1759404056761,153.0,7.9e-07,2]
[388830779,1759404057817,153.0,7.9e-07,2]
[388830780,1759404058625,-5000.0,0.00018356,2]
[388830781,1759404058668,-0.01,0.00018542,2]
[388830782,1759404058745,-10000.01,0.00018542,2]
[388830783,1759404058907,153.0,7.9e-07,2]
[388830784,1759404058977,-10000.01,0.00018542,2]
[388830785,1759404059009,-10000.01,0.00018542,2]
[388830786,1759404060280,153.0,7.9e-07,2]
[388830787,1759404060472,5000.0,0.00018138,2]
[388830788,1759404060951,153.0,7.9e-07,2]
[388830789,1759404062080,153.0,7.9e-07,2]
[388830790,1759404075781,5000.0,0.00018473,2]
[388830791,1759404080284,513.07314719,0.00017962,2]
[388830792,1759404084166,4486.93685281,0.00018473,2]
[388830793,1759404084188,513.06314719,0.00018473,2]
[388830794,1759404101023,5000.0,0.00018473,2]
[388830795,1759404113903,4486.94685281,0.00018473,2]
[388830796,1759404113927,513.05314719,0.00018473,2]
[388830797,1759404122622,192.29460553,0.00018473,2]
[388830798,1759404127527,500.0,0.00027397,120]
[388830799,1759404130515,5000.0,0.00018473,2]
[388830800,1759404138606,4294.66224728,0.00018473,2]
[388830801,1759404138630,705.33775272,0.00018473,2]
[388830802,1759404146548,4929.26631199,0.00018473,2]
[388830803,1759404155351,4365.40593529,0.00018473,2]
[388830804,1759404155375,634.59406471,0.00018473,2]
[388830805,1759404163138,5000.0,0.00018473,2]
[388830806,1759404171731,5000.0,0.00018473,2]
[388830807,1759404179695,0.01,0.00018473,2]
[388830808,1759404179718,4999.99,0.00018473,2]
[388830809,1759404187855,5000.0,0.00018473,2]
[388830810,1759404195700,0.02,0.00018473,2]
[388830811,1759404195723,4839.43506415,0.00018473,2]
[388830812,1759404203815,5000.0,0.00018473,2]
[388830813,1759404212464,5000.0,0.00018473,2]
[388830814,1759404228070,5000.0,0.00018473,2]
[388830815,1759404231247,184.38979694,0.00018441,2]
[388830816,1759404236382,5000.0,0.00018473,2]
[388830817,1759404242745,-185.14218044,0.00018473,2]
[388830818,1759404244995,-173.828921,0.00018473,2]
[388830819,1759404246054,191.474255,0.00017641,2]
[388830820,1759404246178,-177.3254538,0.00018473,2]
[388830821,1759404248876,-166.063822,0.00018473,2]
[388830822,1759404250898,-500.0,0.00018473,2]
[388830823,1759404251716,5000.0,0.00018138,2]
[388830824,1759404254548,-649.6000861,0.00018473,2]
[388830825,1759404275443,5000.0,0.00018138,2]
[388830826,1759404297634,5000.0,0.00018138,2]
[388830827,1759404300441,-315.68738622,0.00018355,2]
[388830828,1759404301933,-276.9921209,0.00018355,2]
[388830829,1759404304583,-385.64536508,0.00018355,2]
[388830830,1759404306784,-151.13666302,0.00018355,2]
[388830831,1759404309507,-213.40616008,0.00018355,2]
[388830832,1759404312929,-203.65425316,0.00018355,2]
[388830833,1759404315092,-187.42973043,0.00018355,2]
[388830834,1759404317252,-276.13221432,0.00018355,2]
[388830835,1759404318766,-285.58106092,0.00018355,2]
[388830836,1759404320670,5000.0,0.00018138,2]
[388830837,1759404321485,-154.17596329,0.00018355,2]
[388830838,1759404323130,-206.61339169,0.00018355,2]
[388830839,1759404325380,-498.55838868,0.00018355,2]
[388830840,1759404327069,-333.02370465,0.00018355,2]
[388830841,1759404329995,-494.14806088,0.00018355,2]
[388830842,1759404331585,-310.94846158,0.00018355,2]
[388830843,1759404333559,-300.0,0.00018355,2]
[388830844,1759404335189,-406.8670751,0.00018355,2]
[388830845,1759404335212,-93.1329249,0.000185,2]
[388830846,1759404337978,-199.53354559,0.000185,2]
[388830847,1759404339665,-181.93168238,0.000185,2]
[388830848,1759404342569,5000.0,0.00018138,2]
[388830849,1759404343649,-25.40184713,0.000185,2]
[388830850,1759404351666,-382.63210755,0.00018346,2]
[388830851,1759404353180,-222.28871557,0.00018346,2]
[388830852,1759404355302,-241.63803325,0.00018346,2]
[388830854,1759404358234,-200.0,0.00018346,2]
[388830855,1759404360900,-164.52220721,0.00018346,2]
[388830856,1759404364861,-293.87486244,0.00018346,2]
[388830859,1759404365774,5000.0,0.00018138,2]
[388830860,1759404368071,-166.84135727,0.00018346,2]
[388830861,1759404369515,-152.0,0.00018346,2]
[388830862,1759404372994,-500.0,0.00018346,2]
[388830863,1759404375093,-208.65514315,0.00018346,2]
[388830864,1759404376589,-152.70300438,0.00018346,2]
[388830865,1759404382076,-180.25513429,0.00018346,2]
[388830866,1759404384083,1000.0,0.00017641,2]
[388830867,1759404385046,-171.16813973,0.00018346,2]
[388830868,1759404386693,-183.255087,0.00018346,2]
[388830869,1759404388029,5000.0,0.00018138,2]
[388830870,1759404388770,-459.65614521,0.00018346,2]
[388830871,1759404390360,-407.18855488,0.00018346,2]
[388830872,1759404393100,-154.43112863,0.00018346,2]
[388830873,1759404395165,-352.86848498,0.00018346,2]
[388830874,1759404398540,-406.02189446,0.00018346,2]
[388830875,1759404398562,-905.23795103,0.00018473,2]
[388830876,1759404400839,-288.60595056,0.00018473,2]
[388830877,1759404402495,-333.95455455,0.00018473,2]
[388830878,1759404404740,-276.36097538,0.00018473,2]
[388830879,1759404406784,-575.2707443,0.00018473,2]
[388830880,1759404408426,-286.23654563,0.00018473,2]
[388830881,1759404410421,5000.0,0.00018138,2]
[388830882,1759404411175,-436.63010988,0.00018473,2]
[388830883,1759404412726,-255.01229992,0.00018473,2]
[388830884,1759404415356,-246.02726314,0.00018473,2]
[388830885,1759404417439,-249.88971549,0.00018473,2]
[388830886,1759404419484,5000.0,0.00018138,2]
[388830887,1759404419533,-174.95342101,0.00018473,2]
[388830888,1759404421708,-260.09997174,0.00018473,2]
[388830889,1759404424990,-379.13865768,0.00018473,2]
[388830890,1759404427102,-404.24577342,0.00018473,2]
[388830891,1759404429884,-16.05941796,0.00018473,2]
[388830892,1759404430978,178.35952112,0.00017641,2]
[388830893,1759404431008,981.61523228,0.00017641,2]
[388830895,1759404437712,500.0,0.00027397,120]
[388830896,1759404470194,241.7885184,0.000259,120]
[388830897,1759404479456,210.99096807,0.00025,120]
[388830898,1759404488484,5501.0142,0.00017531,2]
[388830899,1759404498890,-150.0,0.00018322,2]
[388830900,1759404500477,-170.6148935,0.00018322,2]
[388830901,1759404505325,-281.99033271,0.00018322,2]
[388830902,1759404506844,-518.81396918,0.00018322,2]
[388830903,1759404510082,-500.0,0.00018322,2]
[388830904,1759404511574,-495.89565102,0.00018322,2]
[388830905,1759404513737,556.49332564,0.0002,120]
[388830906,1759404515715,305.14585577,0.0001813,2]
[388830907,1759404515748,588.47548136,0.00024108,120]
[388830908,1759404515872,425.3330384,0.00025,120]
[388830909,1759404515906,362.76662253,0.00025,120]
[388830910,1759404517050,243.54473533,0.00028,120]
[388830911,1759404517148,150.37676624,0.00025,120]
[388830912,1759404517546,-329.3851065,0.00018322,2]
[388830913,1759404518606,1002.50852582,0.00025,120]
[388830914,1759404519098,-349.36920343,0.00018322,2]
[388830915,1759404519163,206.87104661,0.00027,120]
[388830916,1759404521884,-303.33571407,0.00018322,2]
[388830917,1759404521932,190.94627741,0.00025,120]
[388830918,1759404521971,292.89034436,0.00027397,120]
[388830919,1759404522180,223.74783069,0.0001536,120]
[388830920,1759404522787,513.99182189,0.00025,120]
[388830921,1759404524042,195.38300681,0.0002739,120]
[388830922,1759404524408,717.36544127,0.00026,120]
[388830923,1759404524737,359.21080398,0.00026,120]
[388830924,1759404524773,-200.0,0.00018322,2]
[388830925,1759404524956,429.06068685,0.00025,120]
[388830926,1759404526285,-360.37186939,0.00018322,2]
[388830927,1759404526649,338.91243257,0.00015,5]
[388830928,1759404527084,187.25390821,0.00028,120]
[388830929,1759404527213,209.48995908,0.00026,120]
[388830930,1759404528826,-289.27485921,0.00018322,2]
[388830931,1759404530468,-193.5237827,0.00018322,2]
[388830932,1759404533830,-417.37658991,0.00018322,2]
[388830933,1759404535328,-227.46344808,0.00018322,2]
[388830934,1759404537534,-212.5845803,0.00018322,2]
[388830935,1759404537557,-35.86729042,0.00018507,2]
[388830936,1759404539466,-334.45209696,0.00018507,2]
[388830937,1759404542212,-616.45594787,0.00018507,2]
[388830938,1759404543709,-372.15874734,0.00018507,2]
[388830939,1759404547702,-3641.06591741,0.00018507,2]
[388830940,1759404547732,-1200.0,0.0001853,2]
[388830941,1759404547761,-17.87816518,0.0001853,2]
[388830942,1759404547903,-282.12183482,0.0001853,2]
[388830943,1759404547930,-300.0,0.00018531,2]
[388830944,1759404547958,-300.0,0.00018531,2]
[388830945,1759404548223,-300.0,0.00018531,2]
[388830946,1759404548254,-300.0,0.00018531,2]
[388830947,1759404548286,-1200.0,0.00018531,2]
[388830948,1759404548316,-1430.1,0.00018532,3]
[388830949,1759404548345,-715.05,0.00018532,3]
[388830950,1759404548407,-357.52,0.00018532,3]
[388830951,1759404548437,-306.8,0.00018532,3]
[388830952,1759404548464,-153.4,0.00018532,3]
[388830953,1759404548492,-460.24,0.00018532,3]
[388830954,1759404548521,-500.0,0.00018532,2]
[388830955,1759404548549,-500.0,0.00018532,2]
[388830956,1759404548577,-500.0,0.00018532,2]
[388830957,1759404548604,-500.0,0.00018532,2]
[388830958,1759404548631,-500.0,0.00018532,2]
[388830959,1759404548659,-500.0,0.00018532,2]
[388830960,1759404548687,-296.17002807,0.00018532,2]
[388830961,1759404548716,-200.0,0.00018532,2]
[388830962,1759404548870,-500.0,0.00018532,2]
[388830963,1759404548897,-521.51665698,0.00018532,2]
[388830964,1759404548925,-500.0,0.00018532,2]
[388830965,1759404548953,-500.0,0.00018532,2]
[388830966,1759404548982,-500.0,0.00018532,2]
[388830967,1759404549009,-500.0,0.00018532,2]
[388830968,1759404549037,-500.0,0.00018532,2]
[388830969,1759404549066,-500.0,0.00018532,2]
[388830970,1759404549094,-444.31190037,0.00018532,2]
[388830971,1759404549127,-500.0,0.00018532,2]
[388830972,1759404549194,-500.0,0.00018532,2]
[388830973,1759404549223,-500.0,0.00018532,2]
[388830974,1759404549251,-399.41385393,0.00018532,2]
[388830975,1759404549281,-500.0,0.00018532,2]
[388830976,1759404549308,-500.0,0.00018532,2]
[388830977,1759404549338,-500.0,0.00018532,2]
[388830978,1759404549366,-500.0,0.00018532,2]
[388830979,1759404549395,-500.0,0.00018532,2]
[388830980,1759404549424,-500.0,0.00018532,2]
[388830981,1759404549453,-547.92616797,0.00018532,2]
[388830982,1759404549585,-500.0,0.00018532,2]
[388830983,1759404549613,-500.0,0.00018532,2]
[388830984,1759404549641,-500.0,0.00018532,2]
[388830985,1759404549669,-500.0,0.00018532,2]
[388830986,1759404549698,-461.73297628,0.00018532,2]
[388830987,1759404549725,-160.23788583,0.00018532,2]
[388830988,1759404549754,-500.0,0.00018532,2]
[388830989,1759404549781,-500.0,0.00018532,2]
[388830990,1759404549808,-500.0,0.00018532,2]
[388830991,1759404549836,-500.0,0.00018532,2]
[388830992,1759404549863,-168.63743498,0.00018532,2]
[388830993,1759404550060,-418.79340582,0.00018532,2]
[388830994,1759404550087,-500.0,0.00018532,2]
[388830995,1759404550119,-500.0,0.00018532,2]
[388830996,1759404550149,-500.0,0.00018532,2]
[388830997,1759404550178,-500.0,0.00018532,2]
[388830998,1759404550207,-500.0,0.00018532,2]
[388830999,1759404550238,-500.0,0.00018532,2]
[388831000,1759404550266,-500.0,0.00018532,2]
[388831001,1759404550449,-500.0,0.00018532,2]
[388831002,1759404550478,-500.0,0.00018532,2]
[388831003,1759404550680,-500.0,0.00018532,2]
[388831004,1759404550711,-500.0,0.00018532,2]
[388831005,1759404550741,-500.0,0.00018532,2]
[388831006,1759404550771,-500.0,0.00018532,2]
[388831007,1759404550801,-500.0,0.00018532,2]
[388831008,1759404550831,-500.0,0.00018532,2]
[388831009,1759404550866,-500.0,0.00018532,2]
[388831010,1759404550895,-500.0,0.00018532,2]
[388831011,1759404550924,-500.0,0.00018532,2]
[388831012,1759404550954,-500.0,0.00018532,2]
[388831013,1759404551123,-500.0,0.00018532,2]
[388831014,1759404551155,-500.0,0.00018532,2]
[388831015,1759404551187,-500.0,0.00018532,2]
[388831016,1759404551218,-500.0,0.00018532,2]
[388831017,1759404551246,-500.0,0.00018532,2]
[388831018,1759404551275,-500.0,0.00018532,2]
[388831019,1759404551306,-223.51564384,0.00018532,2]
[388831020,1759404551338,-500.0,0.00018532,2]
[388831021,1759404551368,-500.0,0.00018532,2]
[388831022,1759404551399,-500.0,0.00018532,2]
[388831023,1759404551430,-52.97871232,0.00018532,2]
[388831024,1759404551603,-447.02128768,0.00018532,2]
[388831025,1759404551632,-500.0,0.00018532,2]
[388831026,1759404551662,-500.0,0.00018532,2]
[388831027,1759404551691,-297.21558206,0.00018532,2]
[388831028,1759404551720,-500.0,0.00018532,2]
[388831029,1759404551748,-500.0,0.00018532,2]
[388831030,1759404551778,-500.0,0.00018532,2]
[388831031,1759404551807,-500.0,0.00018532,2]
[388831032,1759404551837,-500.0,0.00018532,2]
[388831033,1759404551866,-500.0,0.00018532,2]
[388831034,1759404551896,-11.53626052,0.00018532,2]
[388831035,1759404552539,-488.46373948,0.00018532,2]
[388831036,1759404552572,-500.0,0.00018532,2]
[388831037,1759404552604,-500.0,0.00018532,2]
[388831038,1759404552635,-500.0,0.00018532,2]
[388831039,1759404552665,-500.0,0.00018532,2]
[388831040,1759404552695,-500.0,0.00018532,2]
[388831041,1759404552723,-501.91686028,0.00018532,2]
[388831042,1759404552754,-500.0,0.00018532,2]
[388831043,1759404552785,-500.0,0.00018532,2]
[388831044,1759404561898,-2000.0,0.00018533,2]
[388831045,1759404561929,-172.815,0.00018533,2]
[388831046,1759404561959,-256.86,0.0001854,2]
[388831047,1759404561986,-561.36113332,0.00018541,2]
[388831048,1759404562014,-374.27737459,0.00018541,2]
[388831049,1759404562042,-500.0,0.00018541,2]
[388831050,1759404562339,-295.9614318,0.00018542,2]
[388831051,1759404562374,-10000.01,0.00018542,2]
[388831052,1759404562437,-10000.01,0.00018542,2]
[388831053,1759404562451,-10000.01,0.00018542,2]
[388831054,1759404562527,-10000.01,0.00018542,2]
[388831055,1759404562641,-10000.01,0.00018542,2]
[388831056,1759404564691,-10000.01,0.00018542,2]
[388831057,1759404564933,-10000.01,0.00018542,2]
[388831058,1759404565056,-10000.01,0.00018542,2]
[388831059,1759404565162,-10000.01,0.00018542,2]
[388831060,1759404566560,-10000.01,0.00018542,2]
[388831061,1759404566697,-10000.01,0.00018542,2]
[388831062,1759404566769,-10000.01,0.00018542,2]
[388831063,1759404566928,-10000.01,0.00018542,2]
[388831064,1759404567034,-10000.01,0.00018542,2]
[388831065,1759404567200,-10000.01,0.00018542,2]
[388831066,1759404568813,-10000.01,0.00018542,2]
[388831067,1759404568972,-10000.01,0.00018542,2]
[388831068,1759404569097,-10000.01,0.00018542,2]
[388831069,1759404570583,-10000.01,0.00018542,2]
[388831070,1759404570689,-10000.01,0.00018542,2]
[388831071,1759404571273,-10000.01,0.00018542,2]
[388831072,1759404571306,-10000.01,0.00018542,2]
[388831073,1759404571335,-10000.01,0.00018542,2]
[388831074,1759404571369,-10000.01,0.00018542,2]
[388831075,1759404571382,-6748.59739252,0.00018542,2]
[388831076,1759404571391,-3251.41260748,0.00018542,2]
[388831077,1759404572001,903.48970414,0.00018989,120]
[388831078,1759404572790,-1748.58739252,0.00018542,2]
[388831079,1759404574654,5000.0,0.00018542,2]
[388831080,1759404586572,1502.83521496,0.00018496,2]
[388831081,1759404586596,230.06618912,0.00018496,2]
[388831082,1759404588840,161.64778172,0.00024767,30]
[388831083,1759404589616,-150.0,0.00018573,2]
[388831084,1759404591284,9769.94381088,0.00017706,2]
[388831085,1759404591305,230.05618912,0.00017706,2]
[388831086,1759404597068,5000.0,0.00018542,2]
[388831087,1759404609360,225.24145634,0.00018532,2]
[388831088,1759404609390,263.42556883,0.00018532,2]
[388831089,1759404609427,500.0,0.00018532,2]
[388831090,1759404609459,500.0,0.00018532,2]
[388831091,1759404609487,355.60495426,0.00018532,2]
[388831092,1759404609517,500.0,0.00018532,2]
[388831093,1759404609545,500.0,0.00018532,2]
[388831094,1759404609743,500.0,0.00018532,2]
[388831095,1759404609785,500.0,0.00018532,2]
[388831096,1759404609840,500.0,0.00018532,2]
[388831097,1759404609879,425.68183145,0.00018532,2]
[388831098,1759404609903,74.31816855,0.00018532,2]
[388831099,1759404610298,500.0,0.00018532,2]
[388831100,1759404610340,500.0,0.00018532,2]
[388831101,1759404610372,500.0,0.00018532,2]
[388831102,1759404610415,500.0,0.00018532,2]
[388831103,1759404610479,500.0,0.00018532,2]
[388831104,1759404610513,500.0,0.00018532,2]
[388831105,1759404610541,300.0,0.00018532,2]
[388831106,1759404610578,500.0,0.00018532,2]
[388831107,1759404610916,500.0,0.00018532,2]
[388831108,1759404610943,541.83814968,0.00018532,2]
[388831109,1759404611531,500.0,0.00018532,2]
[388831110,1759404611601,500.0,0.00018532,2]
[388831111,1759404611907,600.0,0.00018532,2]
[388831112,1759404611939,650.0,0.00018532,2]
[388831113,1759404615534,170.24390927,0.00018531,2]
[388831114,1759404616816,500.0,0.00018532,2]
[388831115,1759404616858,500.0,0.00018532,2]
[388831116,1759404616897,500.0,0.00018532,2]
[388831117,1759404616927,500.0,0.00018532,2]
[388831118,1759404616970,500.0,0.00018532,2]
[388831119,1759404617003,163.6097725,0.00018532,2]
[388831120,1759404617026,336.3902275,0.00018532,2]
[388831121,1759404617063,500.0,0.00018532,2]
[388831122,1759404617092,500.0,0.00018532,2]
[388831123,1759404617120,500.0,0.00018532,2]
[388831124,1759404617157,500.0,0.00018532,2]
[388831125,1759404617198,625.0,0.00018532,2]
[388831126,1759404617227,500.0,0.00018532,2]
[388831127,1759404617262,500.0,0.00018532,2]
[388831128,1759404617295,500.0,0.00018532,2]
[388831129,1759404617325,500.0,0.00018532,2]
[388831130,1759404617352,500.0,0.00018532,2]
[388831131,1759404617386,500.0,0.00018532,2]
[388831132,1759404617428,500.0,0.00018532,2]
[388831133,1759404617457,500.0,0.00018532,2]
[388831134,1759404617499,500.0,0.00018532,2]
[388831135,1759404619423,2538.6197725,0.00018542,2]
[388831136,1759404619446,1534.68484109,0.00018542,2]
[388831137,1759404626563,407.24461517,0.00018532,2]
[388831138,1759404626603,500.0,0.00018532,2]
[388831139,1759404626634,500.0,0.00018532,2]
[388831140,1759404626669,500.0,0.00018532,2]
[388831141,1759404626704,500.0,0.00018532,2]
[388831142,1759404626746,500.0,0.00018532,2]
[388831143,1759404626774,500.0,0.00018532,2]
[388831144,1759404626825,500.0,0.00018532,2]
[388831145,1759404626853,500.0,0.00018532,2]
[388831146,1759404626880,500.0,0.00018532,2]
[388831147,1759404626907,500.0,0.00018532,2]
[388831148,1759404626935,500.0,0.00018532,2]
[388831149,1759404626973,500.0,0.00018532,2]
[388831150,1759404627001,500.0,0.00018532,2]
[388831151,1759404627030,500.0,0.00018532,2]
[388831152,1759404627058,500.0,0.00018532,2]
[388831153,1759404627111,500.0,0.00018532,2]
[388831154,1759404627142,58.08054374,0.00018532,2]
[388831155,1759404627166,441.91945626,0.00018532,2]
[388831156,1759404627194,500.0,0.00018532,2]
[388831157,1759404627258,500.0,0.00018532,2]
[388831158,1759404627288,500.0,0.00018532,2]
[388831159,1759404627319,500.0,0.00018532,2]
[388831160,1759404627359,500.0,0.00018532,2]
[388831161,1759404627387,500.0,0.00018532,2]
[388831162,1759404627413,500.0,0.00018532,2]
[388831163,1759404627440,635.88356916,0.00018532,2]
[388831164,1759404627470,500.0,0.00018532,2]
[388831165,1759404627511,500.0,0.00018532,2]
[388831166,1759404627539,500.0,0.00018532,2]
[388831167,1759404627567,500.0,0.00018532,2]
[388831168,1759404627596,500.0,0.00018532,2]
[388831169,1759404627628,325.78944197,0.00018532,2]
[388831170,1759404627682,500.0,0.00018532,2]
[388831171,1759404627708,500.0,0.00018532,2]
[388831172,1759404627746,500.0,0.00018532,2]
[388831173,1759404627896,1096.41753261,0.00018542,2]
[388831174,1759404627917,3903.58246739,0.00018542,2]
[388831191,1759404631920,-300.0,0.00018572,2]
[388831192,1759404631930,-300.0,0.00018572,2]
[388831193,1759404631939,-300.0,0.00018572,2]
[388831194,1759404631948,-125.37522521,0.00018572,2]
[388831201,1759404634436,162.0,0.00025262,120]
[388831202,1759404635742,162.0,0.00026525,120]
[388831203,1759404637017,162.0,0.00027852,120]
[388831204,1759404637050,666.0,0.00017677,2]
[388831218,1759404637703,-174.62477479,0.00018572,2]
[388831219,1759404637713,-300.0,0.00018572,2]
[388831220,1759404637724,-11.8949099,0.00018572,2]
[388831233,1759404641013,-5.59761775,0.00018572,2]
[388831251,1759404642591,5000.0,0.00018532,2]
[388831376,1759404645966,-1182.50747235,0.00018572,2]
[388831377,1759404645975,-179.19482684,0.00018573,2]
[388831383,1759404662898,184.4854291,0.00018496,2]
[388831384,1759404664949,4149.5245709,0.00018532,2]
[388831385,1759404664974,850.4754291,0.00018532,2]
[388831386,1759404671824,300.0,0.000185,2]
[388831387,1759404673507,8849.5345709,0.00018439,2]
[388831388,1759404673531,10000.01,0.00018439,2]
[388831389,1759404673555,10000.01,0.00018439,2]
[388831390,1759404673578,10000.01,0.00018439,2]
[388831391,1759404673603,10000.01,0.00018439,2]
[388831392,1759404673628,10000.01,0.00018439,2]
[388831393,1759404673652,10000.01,0.00018439,2]
[388831394,1759404673675,10000.01,0.00018439,2]